fUSD/lending_fUSD_20240429
["ID","MTS","AMOUNT","RATE_DAILY","PERIOD"]
[324833469,1714362638652,-500.0,0.00012987,2]
[324833470,1714362638662,-500.0,0.00012987,2]
[324833471,1714362638671,-252.68453836,0.00012987,2]
[324833472,1714362638680,-504.51784429,0.00012987,2]
[324833473,1714362638690,-500.0,0.00012987,2]
[324833474,1714362638699,-500.0,0.00012987,2]
[324833475,1714362638708,-500.0,0.00012987,2]
[324833476,1714362638718,-500.0,0.00012987,2]
[324833477,1714362638727,-500.0,0.00012987,2]
[324833478,1714362638736,-210.27982608,0.00012987,2]
[324833479,1714362638957,-500.0,0.00012987,2]
[324833480,1714362638967,-500.0,0.00012987,2]
[324833481,1714362638976,-500.0,0.00012987,2]
[324833482,1714362638985,-996.02,0.00012987,2]
[324833483,1714362638995,-502.13,0.00012987,2]
[324833484,1714362639005,-500.0,0.00012987,2]
[324833485,1714362639014,-522.93190759,0.00012987,2]
[324833486,1714362639023,-862.2,0.00012987,2]
[324833487,1714362639033,-500.0,0.00012987,2]
[324833488,1714362639043,-500.0,0.00012987,2]
[324833489,1714362639053,-500.0,0.00012987,2]
[324833490,1714362639062,-512.27689938,0.00012987,2]
[324833491,1714362639071,-521.60925962,0.00012987,2]
[324833492,1714362639081,-500.0,0.00012987,2]
[324833493,1714362639090,-789.14,0.00012987,2]
[324833494,1714362639099,-500.0,0.00012987,2]
[324833495,1714362639114,-438.45,0.00012987,2]
[324833496,1714362639123,-500.0,0.00012987,2]
[324833497,1714362639133,-500.0,0.00012987,2]
[324833498,1714362639142,-1606.23942509,0.00012987,2]
[324833499,1714362639157,-728.66057491,0.00012987,2]
[324833500,1714362639169,-487.75676415,0.00012987,2]
[324833501,1714362639189,-12.24323585,0.00012987,2]
[324833502,1714362639201,-500.0,0.00012987,2]
[324833503,1714362639212,-500.0,0.00012987,2]
[324833504,1714362639223,-500.0,0.00012987,2]
[324833505,1714362639232,-794.78,0.00012987,2]
[324833506,1714362639242,-518.29171594,0.00012987,2]
[324833507,1714362639252,-381.38504824,0.00012987,2]
[324833508,1714362639274,-118.61495176,0.00012987,2]
[324833509,1714362639284,-172.78693068,0.00012987,2]
[324833510,1714362639296,-500.0,0.00012987,2]
[324833511,1714362639306,-500.0,0.00012987,2]
[324833512,1714362639317,-1000.0,0.00012988,2]
[324833513,1714362639327,-1000.0,0.00012988,2]
[324833514,1714362639337,-1000.0,0.00012988,2]
[324833515,1714362639347,-1000.0,0.00012988,2]
[324833516,1714362639357,-1000.0,0.00012988,2]
[324833517,1714362639367,-638.0,0.00012988,2]
[324833518,1714362639376,-1000.0,0.00012988,2]
[324833519,1714362639386,-1000.0,0.00012988,2]
[324833520,1714362639395,-1000.0,0.00012988,2]
[324833521,1714362639405,-1000.0,0.00012988,2]
[324833522,1714362639416,-1000.0,0.00012988,2]
[324833523,1714362639426,-1015.0,0.00012988,2]
[324833524,1714362639435,-1000.0,0.00012988,2]
[324833525,1714362639444,-1000.0,0.00012988,2]
[324833526,1714362639454,-1000.0,0.00012988,2]
[324833527,1714362639464,-1000.0,0.00012988,2]
[324833528,1714362639473,-1000.0,0.00012988,2]
[324833529,1714362639483,-835.59811756,0.00012988,2]
[324833530,1714362639505,-164.40188244,0.00012988,2]
[324833531,1714362639515,-721.12582892,0.00012988,2]
[324833532,1714362639532,-278.87417108,0.00012988,2]
[324833533,1714362639541,-1000.0,0.00012988,2]
[324833534,1714362639551,-800.15978405,0.00012988,2]
[324833538,1714362639912,-199.84021595,0.00012988,2]
[324833539,1714362639922,-1000.0,0.00012988,2]
[324833540,1714362639932,-155.0,0.00012988,2]
[324833541,1714362639941,-504.08663647,0.00012988,2]
[324833542,1714362639951,-170.05678492,0.00012988,2]
[324833543,1714362639960,-500.0,0.00012988,2]
[324833544,1714362639971,-500.0,0.00012988,2]
[324833545,1714362639981,-500.0,0.00012988,2]
[324833546,1714362639990,-500.0,0.00012988,2]
[324833547,1714362640000,-500.0,0.00012988,2]
[324833548,1714362640009,-500.0,0.00012988,2]
[324833549,1714362640019,-500.0,0.00012988,2]
[324833550,1714362640028,-500.0,0.00012988,2]
[324833551,1714362640037,-500.0,0.00012988,2]
[324833552,1714362640047,-500.0,0.00012988,2]
[324833553,1714362640056,-500.0,0.00012988,2]
[324833554,1714362640066,-441.06,0.00012988,2]
[324833555,1714362640075,-500.0,0.00012988,2]
[324833556,1714362640085,-549.04988555,0.00012988,2]
[324833557,1714362640095,-500.0,0.00012988,2]
[324833558,1714362640105,-500.0,0.00012988,2]
[324833559,1714362640115,-500.0,0.00012988,2]
[324833560,1714362640127,-504.42039534,0.00012988,2]
[324833561,1714362640136,-500.0,0.00012988,2]
[324833562,1714362640146,-500.0,0.00012988,2]
[324833563,1714362640155,-500.0,0.00012988,2]
[324833564,1714362640167,-500.0,0.00012988,2]
[324833565,1714362640180,-500.0,0.00012988,2]
[324833566,1714362640191,-500.0,0.00012988,2]
[324833567,1714362640200,-500.0,0.00012988,2]
[324833568,1714362640210,-500.0,0.00012988,2]
[324833569,1714362640219,-500.0,0.00012988,2]
[324833570,1714362640229,-514.09648221,0.00012988,2]
[324833571,1714362640238,-511.94305417,0.00012988,2]
[324833572,1714362640248,-511.06520184,0.00012988,2]
[324833573,1714362640257,-503.00190239,0.00012988,2]
[324833574,1714362640266,-508.73460729,0.00012988,2]
[324833575,1714362640275,-500.0,0.00012988,2]
[324833576,1714362640285,-266.39402157,0.00012988,2]
[324833577,1714362640308,-233.60597843,0.00012988,2]
[324833578,1714362640318,-127.2604824,0.00012988,2]
[324833579,1714362640344,-372.7395176,0.00012988,2]
[324833580,1714362640354,-500.0,0.00012988,2]
[324833581,1714362640363,-518.33035748,0.00012988,2]
[324833582,1714362640373,-515.17070356,0.00012988,2]
[324833583,1714362640382,-506.83378121,0.00012988,2]
[324833584,1714362640392,-86.92564015,0.00012988,2]
[324833585,1714362640405,-421.14383691,0.00012988,2]
[324833586,1714362640417,-500.0,0.00012988,2]
[324833588,1714362640426,-11.90406414,0.00012988,2]
[324833590,1714362640438,-493.77654833,0.00012988,2]
[324833592,1714362640447,-500.0,0.00012988,2]
[324833594,1714362640457,-517.11375672,0.00012988,2]
[324833596,1714362640466,-510.91353996,0.00012988,2]
[324833598,1714362640476,-500.0,0.00012988,2]
[324833600,1714362640485,-456.55414937,0.00012988,2]
[324833877,1714362643028,-1254.22,0.00012987,2]
[324833878,1714362643038,-386.96933115,0.00012987,2]
[324833879,1714362643047,-43.44585063,0.00012988,2]
[324833881,1714362643057,-99.19614989,0.00012988,2]
[324833895,1714362643198,-273.27565389,0.00012988,2]
[324833906,1714362647667,-513.0,0.00012329,2]
[324833907,1714362647677,-327.19999952,0.00012877,2]
[324833908,1714362647689,-185.80000048,0.00012877,2]
[324833909,1714362647699,-139.12839916,0.00012987,2]
[324833910,1714362647711,-360.87160084,0.00012987,2]
[324833911,1714362647721,-127.52819622,0.00012988,2]
[324833912,1714362647730,-500.0,0.00012988,2]
[324833913,1714362647739,-500.0,0.00012988,2]
[324833914,1714362647749,-527.91130379,0.00012988,2]
[324833915,1714362647758,-203.81206043,0.00012988,2]
[324833916,1714362647767,-504.50584437,0.00012988,2]
[324833917,1714362647777,-150.0,0.00012988,2]
[324833918,1714362647786,-506.92545195,0.00012988,2]
[324833919,1714362647795,-500.0,0.00012988,2]
[324833920,1714362647804,-500.0,0.00012988,2]
[324833921,1714362647815,-500.0,0.00012988,2]
[324833922,1714362647827,-512.05999663,0.00012988,2]
[324833923,1714362647837,-500.0,0.00012988,2]
[324833924,1714362647847,-500.0,0.00012988,2]
[324833925,1714362647859,-611.22222938,0.00012988,2]
[324833926,1714362647868,-500.0,0.00012988,2]
[324833927,1714362647878,-500.0,0.00012988,2]
[324833928,1714362647888,-520.20996425,0.00012988,2]
[324833929,1714362647897,-506.26803045,0.00012988,2]
[324833930,1714362647907,-504.02616279,0.00012988,2]
[324833931,1714362647918,-348.77996377,0.00012988,2]
[324833932,1714362647928,-500.0,0.00012988,2]
[324833933,1714362647937,-500.0,0.00012988,2]
[324833934,1714362647946,-296.54969094,0.00012988,2]
[324833935,1714362647955,-500.0,0.00012988,2]
[324833936,1714362647964,-518.58417429,0.00012988,2]
[324833937,1714362647973,-512.39743883,0.00012988,2]
[324833938,1714362647982,-524.25204573,0.00012988,2]
[324833939,1714362647992,-500.0,0.00012988,2]
[324833940,1714362648001,-522.09099885,0.00012988,2]
[324833941,1714362648010,-505.99899488,0.00012988,2]
[324833942,1714362648019,-500.0,0.00012988,2]
[324833943,1714362648028,-519.43182008,0.00012988,2]
[324833944,1714362648038,-570.66742096,0.00012988,2]
[324833945,1714362648047,-500.0,0.00012988,2]
[324833946,1714362648056,-552.9346321,0.00012988,2]
[324833947,1714362648066,-506.90765687,0.00012988,2]
[324833948,1714362648075,-505.23246744,0.00012988,2]
[324833949,1714362648084,-515.1877063,0.00012988,2]
[324833950,1714362648093,-508.14627577,0.00012988,2]
[324833951,1714362648105,-500.0,0.00012988,2]
[324833952,1714362648117,-500.0,0.00012988,2]
[324833953,1714362648127,-500.0,0.00012988,2]
[324833954,1714362648137,-151.0,0.00012988,2]
[324833955,1714362648147,-964.04,0.00012988,2]
[324833956,1714362648157,-500.0,0.00012988,2]
[324833957,1714362648166,-500.0,0.00012988,2]
[324833958,1714362648177,-500.0,0.00012988,2]
[324833959,1714362648188,-151.0,0.00012988,2]
[324833960,1714362648198,-1627.55,0.00012988,2]
[324833961,1714362648207,-1627.55,0.00012988,2]
[324833962,1714362648216,-1627.55,0.00012988,2]
[324833963,1714362648226,-1627.55,0.00012988,2]
[324833964,1714362648237,-1627.55,0.00012988,2]
[324833965,1714362648247,-1627.55,0.00012988,2]
[324833966,1714362648258,-1627.55,0.00012988,2]
[324833967,1714362648268,-500.0,0.00012988,2]
[324833968,1714362648278,-1627.55,0.00012988,2]
[324833969,1714362648288,-1627.55,0.00012988,2]
[324833970,1714362648297,-1627.55,0.00012988,2]
[324833971,1714362648307,-1627.55,0.00012988,2]
[324833972,1714362648317,-1627.55,0.00012988,2]
[324833973,1714362648327,-1627.55,0.00012988,2]
[324833974,1714362648336,-1627.55,0.00012988,2]
[324833975,1714362648345,-1627.55,0.00012988,2]
[324833976,1714362648355,-1627.55,0.00012988,2]
[324833977,1714362648364,-1627.55,0.00012988,2]
[324833978,1714362648374,-1627.55,0.00012988,2]
[324833979,1714362648383,-1627.55,0.00012988,2]
[324833980,1714362648392,-1627.55,0.00012988,2]
[324833981,1714362648402,-1627.55,0.00012988,2]
[324833982,1714362648414,-1627.55,0.00012988,2]
[324833983,1714362648427,-1627.55,0.00012988,2]
[324833984,1714362648438,-1627.57821469,0.00012988,2]
[324833985,1714362648447,-500.0,0.00012988,2]
[324833986,1714362648458,-500.0,0.00012988,2]
[324833987,1714362648468,-500.0,0.00012988,2]
[324833988,1714362648479,-510.00387511,0.00012988,2]
[324833989,1714362648488,-567.47,0.00012988,2]
[324833990,1714362648497,-500.0,0.00012988,2]
[324833991,1714362648507,-151.0,0.00012988,2]
[324833992,1714362648516,-500.0,0.00012988,2]
[324833993,1714362648526,-500.0,0.00012988,2]
[324833994,1714362648535,-500.0,0.00012988,2]
[324833995,1714362648545,-602.51454033,0.00012988,2]
[324833996,1714362648554,-288.67486578,0.00012988,2]
[324833997,1714362648563,-901.22,0.00012988,2]
[324833998,1714362648572,-500.0,0.00012988,2]
[324833999,1714362648582,-500.0,0.00012988,2]
[324834000,1714362648591,-795.97,0.00012988,2]
[324834001,1714362648600,-500.0,0.00012988,2]
[324834002,1714362648609,-6851.49,0.00012988,2]
[324834003,1714362648618,-500.0,0.00012988,2]
[324834004,1714362648628,-500.0,0.00012988,2]
[324834005,1714362648637,-1678.47,0.00012988,2]
[324834006,1714362648646,-591.37832414,0.00012988,2]
[324834007,1714362648655,-500.0,0.00012988,2]
[324834008,1714362648664,-500.0,0.00012988,2]
[324834009,1714362648675,-2324.44,0.00012988,2]
[324834010,1714362648684,-500.0,0.00012988,2]
[324834011,1714362648693,-500.0,0.00012988,2]
[324834012,1714362648702,-548.23985673,0.00012988,2]
[324834013,1714362648900,-500.0,0.00012988,2]
[324834014,1714362648909,-600.22580463,0.00012988,2]
[324834015,1714362648920,-500.0,0.00012988,2]
[324834016,1714362648929,-500.0,0.00012988,2]
[324834017,1714362648939,-500.0,0.00012988,2]
[324834018,1714362648948,-500.0,0.00012988,2]
[324834019,1714362648957,-1662.41,0.00012988,2]
[324834020,1714362648966,-1058.79,0.00012988,2]
[324834021,1714362648975,-500.0,0.00012988,2]
[324834022,1714362648986,-289.86,0.00012988,2]
[324834023,1714362648996,-540.79059899,0.00012988,2]
[324834024,1714362649006,-414.25918072,0.00012988,2]
[324834025,1714362649015,-500.0,0.00012988,2]
[324834026,1714362649024,-908.02,0.00012988,2]
[324834027,1714362649033,-500.0,0.00012988,2]
[324834028,1714362649042,-1022.74,0.00012988,2]
[324834029,1714362649052,-500.0,0.00012988,2]
[324834030,1714362649061,-500.0,0.00012988,2]
[324834031,1714362649070,-151.0,0.00012988,2]
[324834032,1714362649079,-1719.44,0.00012988,2]
[324834033,1714362649088,-500.0,0.00012988,2]
[324834034,1714362649097,-500.0,0.00012988,2]
[324834035,1714362649107,-151.0,0.00012988,2]
[324834036,1714362649116,-665.94,0.00012988,2]
[324834037,1714362649129,-500.0,0.00012988,2]
[324834038,1714362649138,-207.702211,0.00012988,2]
[324834039,1714362649148,-881.55,0.00012988,2]
[324834040,1714362649158,-151.0,0.00012988,2]
[324834041,1714362649167,-544.5133912,0.00012988,2]
[324834042,1714362649176,-500.0,0.00012988,2]
[324834043,1714362649185,-500.0,0.00012988,2]
[324834044,1714362649194,-557.44,0.00012988,2]
[324834045,1714362649203,-500.0,0.00012988,2]
[324834046,1714362649212,-500.0,0.00012988,2]
[324834047,1714362649221,-685.25,0.00012988,2]
[324834048,1714362649232,-508.87,0.00012988,2]
[324834049,1714362649240,-500.0,0.00012988,2]
[324834050,1714362649251,-500.0,0.00012988,2]
[324834051,1714362649261,-500.0,0.00012988,2]
[324834052,1714362649272,-174.26169821,0.00012988,2]
[324834053,1714362649282,-500.0,0.00012988,2]
[324834054,1714362649290,-1648.15,0.00012988,2]
[324834055,1714362649299,-500.0,0.00012988,2]
[324834056,1714362649308,-500.0,0.00012988,2]
[324834057,1714362649317,-500.0,0.00012988,2]
[324834058,1714362649325,-500.0,0.00012988,2]
[324834059,1714362649334,-500.0,0.00012988,2]
[324834060,1714362649343,-500.0,0.00012988,2]
[324834061,1714362649354,-500.0,0.00012988,2]
[324834062,1714362649364,-386.62,0.00012988,2]
[324834063,1714362649374,-845.11,0.00012988,2]
[324834064,1714362649383,-2594.34,0.00012988,2]
[324834065,1714362649391,-500.0,0.00012988,2]
[324834066,1714362649401,-151.0,0.00012988,2]
[324834067,1714362649410,-518.74188166,0.00012988,2]
[324834068,1714362649419,-407.96,0.00012988,2]
[324834069,1714362649428,-500.57449435,0.00012988,2]
[324834070,1714362649438,-500.0,0.00012988,2]
[324834071,1714362649447,-500.0,0.00012988,2]
[324834072,1714362649456,-500.0,0.00012988,2]
[324834073,1714362649466,-500.0,0.00012988,2]
[324834074,1714362649475,-500.0,0.00012988,2]
[324834075,1714362649484,-500.0,0.00012988,2]
[324834076,1714362649493,-500.0,0.00012988,2]
[324834077,1714362649503,-500.0,0.00012988,2]
[324834078,1714362649512,-500.0,0.00012988,2]
[324834079,1714362649522,-500.0,0.00012988,2]
[324834080,1714362649531,-506.67988698,0.00012988,2]
[324834081,1714362649540,-500.0,0.00012988,2]
[324834082,1714362649549,-500.0,0.00012988,2]
[324834083,1714362649558,-500.0,0.00012988,2]
[324834084,1714362649567,-158.033696,0.00012988,2]
[324834085,1714362649577,-620.64,0.00012988,2]
[324834086,1714362649586,-204.682457,0.00012988,2]
[324834087,1714362649595,-490.09876221,0.00012988,2]
[324834088,1714362649603,-500.0,0.00012988,2]
[324834089,1714362649612,-500.0,0.00012988,2]
[324834090,1714362649621,-151.0,0.00012988,2]
[324834091,1714362649631,-500.0,0.00012988,2]
[324834092,1714362649639,-151.0,0.00012988,2]
[324834093,1714362649648,-500.0,0.00012988,2]
[324834094,1714362649657,-621.3996016,0.00012988,2]
[324834095,1714362649667,-502.25,0.00012988,2]
[324834096,1714362649678,-500.0,0.00012988,2]
[324834097,1714362649687,-151.0,0.00012989,2]
[324834098,1714362649696,-151.0,0.00012989,2]
[324834099,1714362649705,-151.0,0.00012989,2]
[324834100,1714362649714,-153.091572,0.00012989,2]
[324834101,1714362649723,-216.845379,0.00012989,2]
[324834102,1714362649732,-216.845379,0.00012989,2]
[324834103,1714362649742,-1251.81634,0.00012989,2]
[324834104,1714362649751,-1094.0,0.0001299,2]
[324834105,1714362649761,-184651.33820011,0.0001299,2]
[324834106,1714362650063,-195861.23751996,0.0001299,2]
[324834107,1714362650076,-404.0,0.0001299,2]
[324834136,1714363402685,23821.0,0.000251,120]
[324834137,1714363532786,-305.67,9.781e-05,2]
[324834138,1714363532808,-3414.1506,9.951e-05,2]
[324834139,1714363532828,-427.4264081,0.0001,2]
[324834140,1714363532848,-157.24133803,0.000109,2]
[324834141,1714363532869,-4596.60899149,0.00011,2]
[324834142,1714363532894,-400.0,0.00011,2]
[324834143,1714363532914,-1465.77,0.00011632,2]
[324834144,1714363532939,-230.5,0.00011645,3]
[324834145,1714363532960,-524.21,0.00011653,2]
[324834146,1714363532982,-150.0,0.00011672,2]
[324834147,1714363533003,-1975.65,0.00011774,2]
[324834148,1714363533025,-169.81,0.00011825,2]
[324834149,1714363533046,-1477.7,0.00011864,2]
[324834150,1714363533076,-233.98,0.00011924,2]
[324834151,1714363533107,-250.0,0.00011958,2]
[324834152,1714363533130,-412.72,0.00011976,2]
[324834153,1714363533151,-5000.0,0.00012028,2]
[324834154,1714363533173,-797.4,0.00012029,2]
[324834155,1714363533194,-305.67,0.00012045,2]
[324834156,1714363533214,-382.9,0.00012316,2]
[324834157,1714363533235,-518.0,0.00012329,2]
[324834158,1714363533256,-6804.59266238,0.00012696,2]
[324834316,1714363678647,829.84,0.000251,120]
[324834323,1714363832359,-155.0,9.85e-05,2]
[324834324,1714363832368,-236.08791457,9.851e-05,2]
[324834325,1714363832380,-1559.39465,9.851e-05,2]
[324834326,1714363832391,-7393.46203543,9.851e-05,2]
[324834327,1714363832400,-155.0,0.0001,2]
[324834328,1714363832410,-170.25,0.00011554,2]
[324834329,1714363832419,-4814.48050903,0.00011567,2]
[324834330,1714363832430,-2498.0,0.00011567,2]
[324834331,1714363832440,-881.26949097,0.00011567,2]
[324834332,1714363832450,-427.4264081,0.0001164,2]
[324834333,1714363832459,-200.0,0.00011641,2]
[324834334,1714363832470,-150.0,0.00011869,2]
[324834335,1714363832483,-176.45,0.00011869,2]
[324834336,1714363832492,-150.0,0.00011885,2]
[324834337,1714363832502,-319.77,0.00011886,2]
[324834338,1714363832511,-1273.16,0.0001191,2]
[324834339,1714363832520,-152.29,0.00011948,2]
[324834340,1714363832529,-152.29,0.00011993,2]
[324834341,1714363832538,-299.99,0.00011993,2]
[324834342,1714363832547,-158.28,0.00011993,2]
[324834343,1714363832557,-1268.52,0.00011993,2]
[324834344,1714363832570,-5000.0,0.00012,2]
[324834345,1714363832580,-152.29,0.00012037,2]
[324834346,1714363832589,-152.29,0.00012082,2]
[324834347,1714363832599,-152.29,0.00012126,2]
[324834349,1714363832612,-152.29,0.00012171,2]
[324834351,1714363832621,-152.29,0.00012215,2]
[324834353,1714363832630,-152.29,0.0001226,2]
[324834355,1714363832639,-152.29,0.00012304,2]
[324834358,1714363832649,-1505.96777792,0.00012327,2]
[324834359,1714363832658,-152.29,0.00012349,2]
[324834362,1714363832667,-152.29,0.00012393,2]
[324834364,1714363832677,-152.29,0.00012438,2]
[324834366,1714363832686,-152.29,0.00012482,2]
[324834368,1714363832696,-152.29,0.00012526,2]
[324834370,1714363832705,-152.29,0.00012571,2]
[324834372,1714363832714,-1908.07476301,0.00012696,4]
[324834374,1714363832726,-868.04113259,0.00012696,4]
[324834375,1714363832737,-1439.9241044,0.00012696,4]
[324834377,1714363832747,-169.87,0.00012696,2]
[324834379,1714363832756,-150.99,0.00012696,2]
[324834381,1714363832765,-150.99,0.00012696,2]
[324834383,1714363832775,-413.41,0.000127,2]
[324834385,1714363832784,-155.0,0.000127,2]
[324834387,1714363832793,-499.99,0.00012727,2]
[324834388,1714363832803,-253.61234311,0.00012728,2]
[324834389,1714363832812,-1602.1828,0.0001279,2]
[324834390,1714363832822,-512.9575,0.0001279,2]
[324834391,1714363832831,-14511.24890961,0.000128,2]
[324834392,1714363832841,-150.0,0.000128,2]
[324834393,1714363832851,-303.51,0.000128,2]
[324834394,1714363832861,-414.11,0.000128,2]
[324834395,1714363832871,-795.61,0.000128,2]
[324834396,1714363832880,-162.94,0.000128,2]
[324834397,1714363832890,-414.11,0.000128,2]
[324834398,1714363832899,-150.0,0.000128,2]
[324834399,1714363832908,-325.68,0.000128,2]
[324834400,1714363832918,-1043.18028,0.0001286,2]
[324834401,1714363832927,-7500.0,0.00012874,2]
[324834402,1714363832937,-518.0,0.00012877,2]
[324834403,1714363832946,-49780.86105674,0.00012878,2]
[324834404,1714363832956,-242.19,0.00012882,2]
[324834405,1714363832965,-1000.0,0.00012886,2]
[324834406,1714363832975,-500.0,0.00012886,2]
[324834407,1714363832984,-44266.1457,0.00012888,2]
[324834408,1714363832993,-170.24673897,0.00012888,2]
[324834409,1714363833003,-343.87973286,0.00012888,2]
[324834410,1714363833012,-167.82,0.00012888,2]
[324834411,1714363833023,-500.0,0.00012889,2]
[324834412,1714363833032,-1057.73812383,0.0001289,2]
[324834413,1714363833041,-175.83857582,0.0001289,2]
[324834414,1714363833050,-71211.1809,0.0001289,2]
[324834415,1714363833060,-1057.73812375,0.00012891,2]
[324834416,1714363833069,-343.87973283,0.00012891,2]
[324834417,1714363833079,-1057.73812375,0.00012892,2]
[324834418,1714363833088,-500.0,0.00012892,2]
[324834419,1714363833097,-500.0,0.00012892,2]
[324834420,1714363833108,-500.0,0.00012892,2]
[324834421,1714363833117,-500.0,0.00012892,2]
[324834422,1714363833127,-500.0,0.00012892,2]
[324834423,1714363833136,-500.0,0.00012892,2]
[324834424,1714363833145,-992.86,0.00012892,2]
[324834425,1714363833155,-503.7,0.00012892,2]
[324834426,1714363833164,-500.0,0.00012892,2]
[324834427,1714363833173,-500.0,0.00012892,2]
[324834428,1714363833183,-500.0,0.00012892,2]
[324834429,1714363833192,-987.18,0.00012892,2]
[324834430,1714363833201,-500.0,0.00012892,2]
[324834431,1714363833210,-500.0,0.00012892,2]
[324834432,1714363833219,-500.0,0.00012892,2]
[324834433,1714363833229,-500.0,0.00012892,2]
[324834434,1714363833238,-981.97,0.00012892,2]
[324834435,1714363833247,-500.0,0.00012892,2]
[324834436,1714363833256,-530.79,0.00012892,2]
[324834437,1714363833265,-510.12,0.00012892,2]
[324834438,1714363833274,-870.8,0.00012892,2]
[324834439,1714363833284,-500.0,0.00012892,2]
[324834440,1714363833292,-500.0,0.00012892,2]
[324834441,1714363833302,-823.99,0.00012892,2]
[324834442,1714363833311,-613.81220251,0.00012892,2]
[324834443,1714363833320,-500.0,0.00012892,2]
[324834444,1714363833329,-500.0,0.00012892,2]
[324834445,1714363833339,-500.0,0.00012892,2]
[324834446,1714363833584,-500.0,0.00012892,2]
[324834447,1714363833594,-500.0,0.00012892,2]
[324834448,1714363833605,-500.0,0.00012892,2]
[324834449,1714363833614,-500.0,0.00012892,2]
[324834450,1714363833623,-500.0,0.00012892,2]
[324834451,1714363833632,-4773.58,0.00012892,2]
[324834452,1714363833641,-500.0,0.00012892,2]
[324834453,1714363833650,-500.0,0.00012892,2]
[324834454,1714363833659,-1057.73812375,0.00012893,2]
[324834455,1714363833668,-29999.99,0.00012893,2]
[324834456,1714363833677,-19999.99,0.00012893,2]
[324834457,1714363833686,-7723.01,0.00012893,2]
[324834458,1714363833695,-8266.48,0.00012893,2]
[324834459,1714363833704,-1201.51,0.00012893,2]
[324834460,1714363833714,-1057.73812375,0.00012894,2]
[324834461,1714363833723,-343.87973283,0.00012894,2]
[324834462,1714363833732,-1057.73812375,0.00012895,2]
[324834463,1714363833741,-1057.73812375,0.00012895,2]
[324834464,1714363833751,-1057.73812375,0.00012896,2]
[324834465,1714363833760,-343.87973283,0.00012897,2]
[324834466,1714363833769,-1057.73812375,0.00012897,2]
[324834467,1714363833778,-1057.73812375,0.00012898,2]
[324834468,1714363833788,-1057.73812375,0.00012899,2]
[324834469,1714363833797,-10000.0,0.000129,2]
[324834470,1714363833806,-1057.73812375,0.000129,2]
[324834471,1714363833816,-263.5491216,0.000129,2]
[324834472,1714363833825,-608.48339136,0.000129,2]
[324834473,1714363833834,-343.87973283,0.000129,2]
[324834474,1714363833852,-5753.535,0.00012944,2]
[324834475,1714363833864,-4519.47961894,0.00012944,2]
[324834476,1714363833880,-1393.53438106,0.00012944,2]
[324834477,1714363833889,-37869.525,0.00012944,2]
[324834478,1714363833899,-404.4139294,0.00012977,2]
[324834479,1714363833909,-242.19,0.00012978,2]
[324834480,1714363833919,-190.39113468,0.0001298,2]
[324834481,1714363833929,-190.39113468,0.0001298,2]
[324834482,1714363833939,-242.19,0.0001298,2]
[324834483,1714363833948,-242.19,0.0001298,2]
[324834484,1714363833958,-242.19,0.0001298,2]
[324834485,1714363833967,-242.19,0.0001298,2]
[324834486,1714363833977,-242.19,0.0001298,2]
[324834487,1714363833986,-242.19,0.0001298,2]
[324834488,1714363833997,-242.19,0.0001298,2]
[324834489,1714363834007,-242.19,0.0001298,2]